[Event "Early-Titled-Tuesday-Blitz-May-07-2024"]
[Site "Chess.com"]
[Date "2024.05.07"]
[Round "1"]
[White "Nemegejas"]
[Black "Ramla2020"]
[Result "1-0"]
[WhiteElo "2786"]
[BlackElo "2441"]
[TimeControl "180+1"]
[EndTime "8:06:50 PDT"]
[Termination "Nemegejas won by checkmate"]

1. d4 {[%clk 0:03:00.9]} 1... Nf6 {[%clk 0:02:59.5]} 2. Nf3 {[%clk 0:03:01.2]}
2... d5 {[%clk 0:02:59]} 3. e3 {[%clk 0:03:01.8]} 3... Bg4 {[%clk 0:02:57.9]} 4.
h3 {[%clk 0:02:59.3]} 4... Bh5 {[%clk 0:02:56.5]} 5. c4 {[%clk 0:02:59.9]} 5...
e6 {[%clk 0:02:54.1]} 6. Nc3 {[%clk 0:02:59.8]} 6... Nc6 {[%clk 0:02:48.6]} 7.
Qb3 {[%clk 0:02:46.2]} 7... Na5 {[%clk 0:02:39.3]} 8. Qa4+ {[%clk 0:02:43.4]}
8... c6 {[%clk 0:02:39.4]} 9. cxd5 {[%clk 0:02:38]} 9... exd5 {[%clk 0:02:37.2]}
10. Ne5 {[%clk 0:02:31.3]} 10... Bd6 {[%clk 0:02:27.8]} 11. g4 {[%clk
0:02:23.4]} 11... Bg6 {[%clk 0:02:27.4]} 12. h4 {[%clk 0:02:19.3]} 12... Bxe5
{[%clk 0:02:14.9]} 13. dxe5 {[%clk 0:02:19.2]} 13... Ne4 {[%clk 0:02:15.8]} 14.
Nxe4 {[%clk 0:01:31.1]} 14... Bxe4 {[%clk 0:02:16.7]} 15. Rh3 {[%clk 0:01:30.8]}
15... b5 {[%clk 0:02:14.8]} 16. Qb4 {[%clk 0:01:30.4]} 16... h5 {[%clk
0:02:06.2]} 17. gxh5 {[%clk 0:01:19]} 17... Nc4 {[%clk 0:02:03.7]} 18. Qc3
{[%clk 0:00:57.6]} 18... Rc8 {[%clk 0:01:55.5]} 19. b3 {[%clk 0:00:55.6]} 19...
Nb6 {[%clk 0:01:50.5]} 20. Ba3 {[%clk 0:00:50.3]} 20... Rxh5 {[%clk 0:01:47.9]}
21. e6 {[%clk 0:00:46.3]} 21... f6 {[%clk 0:01:46.1]} 22. Qc5 {[%clk 0:00:41.1]}
22... Rh8 {[%clk 0:01:39.8]} 23. Rg3 {[%clk 0:00:37.8]} 23... Qc7 {[%clk
0:01:33.6]} 24. Be2 {[%clk 0:00:29.7]} 24... a5 {[%clk 0:01:28.1]} 25. Bh5+
{[%clk 0:00:28.4]} 25... g6 {[%clk 0:01:25.3]} 26. Rxg6 {[%clk 0:00:25.9]} 26...
Kd8 {[%clk 0:01:16]} 27. Rxf6 {[%clk 0:00:20.6]} 27... Re8 {[%clk 0:00:53.8]}
28. e7+ {[%clk 0:00:13.3]} 28... Qxe7 {[%clk 0:00:42.9]} 29. Qxb6+ {[%clk
0:00:13.1]} 29... Qc7 {[%clk 0:00:40.8]} 30. Rd6+ {[%clk 0:00:13.4]} 30... Ke7
{[%clk 0:00:39]} 31. Rxc6+ {[%clk 0:00:13.8]} 31... Kd7 {[%clk 0:00:38.1]} 32.
Bg4+ {[%clk 0:00:12.8]} 32... Kd8 {[%clk 0:00:32.2]} 33. Rd6+ {[%clk 0:00:06.9]}
33... Ke7 {[%clk 0:00:31.4]} 34. Rd7# {[%clk 0:00:07.4]} 1-0

[Event "Early-Titled-Tuesday-Blitz-May-07-2024"]
[Site "Chess.com"]
[Date "2024.05.07"]
[Round "1"]
[White "YaWaleriy"]
[Black "PavelShkapenko"]
[Result "0-1"]
[WhiteElo "2404"]
[BlackElo "2720"]
[TimeControl "180+1"]
[EndTime "8:06:51 PDT"]
[Termination "PavelShkapenko won on time"]

1. d3 {[%clk 0:02:56.8]} 1... d5 {[%clk 0:02:58.7]} 2. Nd2 {[%clk 0:02:32]} 2...
Nf6 {[%clk 0:02:56]} 3. Ngf3 {[%clk 0:02:29.3]} 3... Bg4 {[%clk 0:02:48.2]} 4.
e3 {[%clk 0:02:20.7]} 4... Nbd7 {[%clk 0:02:46.4]} 5. Be2 {[%clk 0:02:20.3]}
5... e5 {[%clk 0:02:44]} 6. O-O {[%clk 0:02:15.6]} 6... Bd6 {[%clk 0:02:43.8]}
7. h3 {[%clk 0:02:11.2]} 7... Bh5 {[%clk 0:02:39]} 8. b3 {[%clk 0:02:09.4]} 8...
O-O {[%clk 0:02:35]} 9. Bb2 {[%clk 0:02:08.7]} 9... Qe7 {[%clk 0:02:35.5]} 10.
Nh4 {[%clk 0:01:55.8]} 10... Bxe2 {[%clk 0:02:08.2]} 11. Qxe2 {[%clk 0:01:54.9]}
11... Qe6 {[%clk 0:02:09.1]} 12. e4 {[%clk 0:01:48.9]} 12... Rfe8 {[%clk
0:02:06.1]} 13. Nf5 {[%clk 0:01:44.9]} 13... Bf8 {[%clk 0:02:04.9]} 14. Rfd1
{[%clk 0:01:27.7]} 14... c6 {[%clk 0:02:03.6]} 15. c4 {[%clk 0:01:13.2]} 15...
Nc5 {[%clk 0:02:01]} 16. cxd5 {[%clk 0:01:07.9]} 16... cxd5 {[%clk 0:02:00.8]}
17. Ng3 {[%clk 0:01:04.8]} 17... Qa6 {[%clk 0:01:53.3]} 18. exd5 {[%clk
0:00:51.6]} 18... Qxd3 {[%clk 0:01:46.8]} 19. Nc4 {[%clk 0:00:45.1]} 19... Qxe2
{[%clk 0:01:20.1]} 20. Nxe2 {[%clk 0:00:44.8]} 20... Nfd7 {[%clk 0:01:20.3]} 21.
Rac1 {[%clk 0:00:23.8]} 21... Rac8 {[%clk 0:01:14.7]} 22. Ng3 {[%clk 0:00:16.8]}
22... g6 {[%clk 0:01:14.2]} 23. f3 {[%clk 0:00:15.6]} 23... f5 {[%clk 0:01:09]}
24. Kf2 {[%clk 0:00:12.6]} 24... h5 {[%clk 0:00:53.8]} 25. Nf1 {[%clk 0:00:11]}
25... e4 {[%clk 0:00:50.8]} 26. fxe4 {[%clk 0:00:02.9]} 26... Nxe4+ {[%clk
0:00:50.9]} 27. Kf3 {[%clk 0:00:03.3]} 27... Bc5 {[%clk 0:00:48.6]} 28. Na5
{[%clk 0:00:00.2]} 28... Kh7 {[%clk 0:00:26.1]} 0-1

[Event "Early-Titled-Tuesday-Blitz-May-07-2024"]
[Site "Chess.com"]
[Date "2024.05.07"]
[Round "1"]
[White "s_stefi"]
[Black "Pedrada88"]
[Result "0-1"]
[WhiteElo "1911"]
[BlackElo "2550"]
[TimeControl "180+1"]
[EndTime "8:06:51 PDT"]
[Termination "Pedrada88 won on time"]

1. e4 {[%clk 0:03:00.9]} 1... c6 {[%clk 0:02:59.8]} 2. d3 {[%clk 0:02:55.5]}
2... d5 {[%clk 0:03:00]} 3. Nd2 {[%clk 0:02:55.3]} 3... e5 {[%clk 0:02:59.9]} 4.
Ngf3 {[%clk 0:02:52.9]} 4... Bd6 {[%clk 0:03:00.2]} 5. g3 {[%clk 0:02:52.8]}
5... Nf6 {[%clk 0:03:00.6]} 6. Bg2 {[%clk 0:02:52.5]} 6... O-O {[%clk
0:03:01.2]} 7. O-O {[%clk 0:02:52.3]} 7... Re8 {[%clk 0:03:01.8]} 8. Qe2 {[%clk
0:02:46.7]} 8... Nbd7 {[%clk 0:03:01.7]} 9. c3 {[%clk 0:02:43.9]} 9... b6 {[%clk
0:03:02.1]} 10. Ne1 {[%clk 0:02:34.2]} 10... Bb7 {[%clk 0:03:01.9]} 11. h4
{[%clk 0:02:23.1]} 11... Qc7 {[%clk 0:03:00.6]} 12. g4 {[%clk 0:02:16.3]} 12...
Kh8 {[%clk 0:02:54]} 13. g5 {[%clk 0:02:09.2]} 13... Ng8 {[%clk 0:02:54.1]} 14.
Qh5 {[%clk 0:02:02.5]} 14... g6 {[%clk 0:02:51.3]} 15. Qf3 {[%clk 0:01:59.5]}
15... Nf8 {[%clk 0:02:46.1]} 16. h5 {[%clk 0:01:30.7]} 16... Ne6 {[%clk
0:02:38.8]} 17. Nb3 {[%clk 0:01:22]} 17... dxe4 {[%clk 0:02:37.9]} 18. dxe4
{[%clk 0:01:20.5]} 18... Nf4 {[%clk 0:02:37.4]} 19. hxg6 {[%clk 0:01:03]} 19...
fxg6 {[%clk 0:02:37]} 20. Bxf4 {[%clk 0:00:56.9]} 20... exf4 {[%clk 0:02:37.9]}
21. Nd3 {[%clk 0:00:44.5]} 21... c5 {[%clk 0:02:35.6]} 22. Nd2 {[%clk
0:00:19.9]} 22... Rad8 {[%clk 0:02:31.9]} 23. Rad1 {[%clk 0:00:16.7]} 23... c4
{[%clk 0:02:09.2]} 24. Nb4 {[%clk 0:00:14.6]} 24... Bxb4 {[%clk 0:02:02]} 25.
cxb4 {[%clk 0:00:15.5]} 25... Rd3 {[%clk 0:02:02]} 26. Qg4 {[%clk 0:00:14]}
26... Bc8 {[%clk 0:01:53.4]} 27. Qe2 {[%clk 0:00:13]} 27... b5 {[%clk
0:01:43.8]} 28. a4 {[%clk 0:00:09.1]} 28... a6 {[%clk 0:01:42.3]} 29. axb5
{[%clk 0:00:08.6]} 29... axb5 {[%clk 0:01:43.2]} 30. Rfe1 {[%clk 0:00:06.1]}
30... Qd8 {[%clk 0:01:25.6]} 31. Nf3 {[%clk 0:00:06]} 31... Bg4 {[%clk
0:01:24.3]} 32. Rxd3 {[%clk 0:00:04.9]} 32... cxd3 {[%clk 0:01:25.2]} 33. Qd2
{[%clk 0:00:04.5]} 33... Ne7 {[%clk 0:00:58.8]} 34. Qc3+ {[%clk 0:00:02.2]}
34... Kg8 {[%clk 0:00:59.4]} 35. Qf6 {[%clk 0:00:01.8]} 35... Rf8 {[%clk
0:00:57.1]} 36. Qc3 {[%clk 0:00:00.4]} 36... Nc6 {[%clk 0:00:52.4]} 37. Rd1
{[%clk 0:00:01.3]} 37... Bxf3 {[%clk 0:00:50.5]} 38. Qxd3 {[%clk 0:00:01.7]}
38... Bxd1 {[%clk 0:00:48.6]} 39. Qxd8 {[%clk 0:00:01.1]} 39... Rxd8 {[%clk
0:00:48.6]} 40. e5 {[%clk 0:00:01.7]} 40... Nxe5 {[%clk 0:00:48.8]} 0-1

[Event "Early-Titled-Tuesday-Blitz-May-07-2024"]
[Site "Chess.com"]
[Date "2024.05.07"]
[Round "1"]
[White "JeFumeDesClopes"]
[Black "vedantgoswami"]
[Result "1-0"]
[WhiteElo "2676"]
[BlackElo "2381"]
[TimeControl "180+1"]
[EndTime "8:06:54 PDT"]
[Termination "JeFumeDesClopes won on time"]

1. Nf3 {[%clk 0:02:56.9]} 1... Nf6 {[%clk 0:02:57.3]} 2. g3 {[%clk 0:02:56.7]}
2... g6 {[%clk 0:02:53.9]} 3. b3 {[%clk 0:02:56.2]} 3... Bg7 {[%clk 0:02:53.7]}
4. Bb2 {[%clk 0:02:56.9]} 4... c5 {[%clk 0:02:50.1]} 5. c4 {[%clk 0:02:56.4]}
5... Nc6 {[%clk 0:02:49.6]} 6. Bg2 {[%clk 0:02:56.8]} 6... O-O {[%clk
0:02:46.1]} 7. O-O {[%clk 0:02:56.9]} 7... d6 {[%clk 0:02:39.6]} 8. e3 {[%clk
0:02:57]} 8... Bg4 {[%clk 0:02:32.4]} 9. h3 {[%clk 0:02:53.7]} 9... Bf5 {[%clk
0:02:29]} 10. Nc3 {[%clk 0:02:45.2]} 10... Bd3 {[%clk 0:02:25.8]} 11. Re1 {[%clk
0:02:43.3]} 11... a6 {[%clk 0:02:11.9]} 12. Ne2 {[%clk 0:02:18.2]} 12... Nb4
{[%clk 0:02:05.5]} 13. Nf4 {[%clk 0:02:10.7]} 13... Bc2 {[%clk 0:01:56.8]} 14.
Qc1 {[%clk 0:01:55.7]} 14... e5 {[%clk 0:01:53.9]} 15. a3 {[%clk 0:01:51.4]}
15... exf4 {[%clk 0:01:38.9]} 16. axb4 {[%clk 0:01:51.1]} 16... Be4 {[%clk
0:01:28.4]} 17. exf4 {[%clk 0:01:45.2]} 17... Re8 {[%clk 0:01:15.9]} 18. bxc5
{[%clk 0:01:42.5]} 18... dxc5 {[%clk 0:01:15.6]} 19. Be5 {[%clk 0:01:40.2]}
19... Qb6 {[%clk 0:01:02.8]} 20. Qc3 {[%clk 0:01:38.4]} 20... Rad8 {[%clk
0:00:56.4]} 21. Re3 {[%clk 0:01:30.1]} 21... Bf5 {[%clk 0:00:34]} 22. d3 {[%clk
0:01:15.5]} 22... h5 {[%clk 0:00:24.1]} 23. Rae1 {[%clk 0:01:12.4]} 23... Re7
{[%clk 0:00:13]} 24. d4 {[%clk 0:01:01.1]} 24... cxd4 {[%clk 0:00:10.7]} 25.
Nxd4 {[%clk 0:01:01.3]} 25... Rde8 {[%clk 0:00:09.5]} 26. Nxf5 {[%clk
0:01:01.2]} 26... gxf5 {[%clk 0:00:08.9]} 27. Qc2 {[%clk 0:00:54.2]} 27... Ne4
{[%clk 0:00:07]} 28. Bxg7 {[%clk 0:00:51]} 28... Kxg7 {[%clk 0:00:06.3]} 29. Kh2
{[%clk 0:00:48.7]} 29... h4 {[%clk 0:00:05.6]} 30. gxh4 {[%clk 0:00:42]} 30...
Qc7 {[%clk 0:00:02.8]} 31. Bxe4 {[%clk 0:00:42.5]} 31... Qxf4+ {[%clk
0:00:02.4]} 32. Rg3+ {[%clk 0:00:43.2]} 32... Kf8 {[%clk 0:00:01.5]} 33. Qc3
{[%clk 0:00:39.7]} 33... Rxe4 {[%clk 0:00:01.1]} 34. Rg1 {[%clk 0:00:35.1]} 1-0

[Event "Early-Titled-Tuesday-Blitz-May-07-2024"]
[Site "Chess.com"]
[Date "2024.05.07"]
[Round "1"]
[White "Schattman"]
[Black "jefferyx"]
[Result "0-1"]
[WhiteElo "2539"]
[BlackElo "3122"]
[TimeControl "180+1"]
[EndTime "8:06:55 PDT"]
[Termination "jefferyx won on time"]

1. d4 {[%clk 0:03:00.9]} 1... Nf6 {[%clk 0:02:46.7]} 2. Bf4 {[%clk 0:03:00.5]}
2... d5 {[%clk 0:02:44.9]} 3. Nc3 {[%clk 0:02:58.5]} 3... e6 {[%clk 0:02:42.7]}
4. Nb5 {[%clk 0:02:57.7]} 4... Na6 {[%clk 0:02:42.4]} 5. e3 {[%clk 0:02:57.8]}
5... Be7 {[%clk 0:02:41.4]} 6. Nf3 {[%clk 0:02:57.4]} 6... O-O {[%clk
0:02:41.8]} 7. h4 {[%clk 0:02:57.6]} 7... Ne4 {[%clk 0:02:33.2]} 8. Nd2 {[%clk
0:02:31.5]} 8... f5 {[%clk 0:02:18.1]} 9. Nxe4 {[%clk 0:02:16.6]} 9... fxe4
{[%clk 0:02:19]} 10. a3 {[%clk 0:02:16.1]} 10... c6 {[%clk 0:02:18.7]} 11. Nc3
{[%clk 0:02:15.2]} 11... Nb8 {[%clk 0:02:18.6]} 12. f3 {[%clk 0:01:49]} 12...
Bxh4+ {[%clk 0:02:15.1]} 13. Kd2 {[%clk 0:01:34]} 13... Bg5 {[%clk 0:01:57.4]}
14. Bxg5 {[%clk 0:01:34.1]} 14... Qxg5 {[%clk 0:01:58.1]} 15. f4 {[%clk
0:01:34.5]} 15... Qe7 {[%clk 0:01:49.4]} 16. Qh5 {[%clk 0:01:23.8]} 16... g6
{[%clk 0:01:49.1]} 17. Qh2 {[%clk 0:01:21.3]} 17... c5 {[%clk 0:01:45.2]} 18.
Ne2 {[%clk 0:00:50.4]} 18... Nc6 {[%clk 0:01:44]} 19. c3 {[%clk 0:00:50.8]}
19... Na5 {[%clk 0:01:42.6]} 20. Re1 {[%clk 0:00:43.8]} 20... Nc4+ {[%clk
0:01:41.7]} 21. Kc1 {[%clk 0:00:39.8]} 21... Nxe3 {[%clk 0:01:42.6]} 22. dxc5
{[%clk 0:00:33.3]} 22... b6 {[%clk 0:01:38.9]} 23. c6 {[%clk 0:00:31.4]} 23...
Ba6 {[%clk 0:01:33.6]} 24. Nd4 {[%clk 0:00:17.9]} 24... Nxf1 {[%clk 0:01:30.8]}
25. Rexf1 {[%clk 0:00:18.1]} 25... Bxf1 {[%clk 0:01:31.5]} 26. Rxf1 {[%clk
0:00:18.5]} 26... e5 {[%clk 0:01:29.8]} 27. Ne2 {[%clk 0:00:15.2]} 27... Rac8
{[%clk 0:01:29.4]} 28. Rd1 {[%clk 0:00:12.8]} 28... d4 {[%clk 0:01:26.9]} 29.
fxe5 {[%clk 0:00:12.2]} 29... dxc3 {[%clk 0:01:23]} 30. Nxc3 {[%clk 0:00:11.6]}
30... Rxc6 {[%clk 0:01:22.8]} 31. Kb1 {[%clk 0:00:12]} 31... Rxc3 {[%clk
0:01:16]} 32. bxc3 {[%clk 0:00:11.5]} 32... Qxa3 {[%clk 0:01:16.4]} 33. Qh3
{[%clk 0:00:07.2]} 33... Qb3+ {[%clk 0:00:40.6]} 34. Kc1 {[%clk 0:00:07.1]}
34... a5 {[%clk 0:00:40]} 35. e6 {[%clk 0:00:06.5]} 35... Rc8 {[%clk 0:00:37.9]}
36. Kd2 {[%clk 0:00:04.5]} 36... Rd8+ {[%clk 0:00:37.6]} 0-1

[Event "Early-Titled-Tuesday-Blitz-May-07-2024"]
[Site "Chess.com"]
[Date "2024.05.07"]
[Round "1"]
[White "francyIM"]
[Black "masterofpuppets2"]
[Result "1-0"]
[WhiteElo "2811"]
[BlackElo "2455"]
[TimeControl "180+1"]
[EndTime "8:06:56 PDT"]
[Termination "francyIM won by resignation"]

1. Nf3 {[%clk 0:02:59.2]} 1... d5 {[%clk 0:02:56.6]} 2. g3 {[%clk 0:02:56.1]}
2... Nd7 {[%clk 0:02:55.4]} 3. c4 {[%clk 0:02:52.3]} 3... dxc4 {[%clk
0:02:54.4]} 4. Na3 {[%clk 0:02:50.4]} 4... e5 {[%clk 0:02:51.2]} 5. Qc2 {[%clk
0:02:49.2]} 5... Bxa3 {[%clk 0:02:23.6]} 6. bxa3 {[%clk 0:02:46.2]} 6... Ngf6
{[%clk 0:02:23.8]} 7. Qxc4 {[%clk 0:02:43.7]} 7... O-O {[%clk 0:02:23.4]} 8. d3
{[%clk 0:02:43.8]} 8... Re8 {[%clk 0:02:22.5]} 9. Bg2 {[%clk 0:02:41.6]} 9...
Nb6 {[%clk 0:02:16.7]} 10. Qc2 {[%clk 0:02:39.7]} 10... Bf5 {[%clk 0:02:04.2]}
11. e4 {[%clk 0:02:38.7]} 11... Bg4 {[%clk 0:01:58.5]} 12. Nd2 {[%clk
0:02:36.9]} 12... Qe7 {[%clk 0:01:50]} 13. Nb3 {[%clk 0:02:31.5]} 13... Rad8
{[%clk 0:01:48.4]} 14. h3 {[%clk 0:02:31.1]} 14... Bc8 {[%clk 0:01:47.6]} 15.
O-O {[%clk 0:02:29.4]} 15... Qd6 {[%clk 0:01:43.1]} 16. Rd1 {[%clk 0:02:28]}
16... h6 {[%clk 0:01:38.5]} 17. Kh2 {[%clk 0:02:18.8]} 17... Nbd7 {[%clk
0:01:32.1]} 18. Be3 {[%clk 0:02:16.4]} 18... b6 {[%clk 0:01:24.9]} 19. d4 {[%clk
0:02:16.4]} 19... Bb7 {[%clk 0:01:15.9]} 20. dxe5 {[%clk 0:02:14.8]} 20... Qxe5
{[%clk 0:01:16.8]} 21. f3 {[%clk 0:02:06.7]} 21... c5 {[%clk 0:01:12.7]} 22. a4
{[%clk 0:02:03.5]} 22... Qe6 {[%clk 0:01:05.5]} 23. a5 {[%clk 0:02:01.1]} 23...
Ne5 {[%clk 0:01:05.8]} 24. axb6 {[%clk 0:02:00.9]} 24... axb6 {[%clk 0:01:06.7]}
25. a4 {[%clk 0:01:59.9]} 25... Ba6 {[%clk 0:01:02.6]} 26. a5 {[%clk 0:01:58.9]}
26... Bd3 {[%clk 0:01:02.3]} 27. Qc3 {[%clk 0:01:58]} 27... Bc4 {[%clk
0:00:41.1]} 28. Rxd8 {[%clk 0:01:36.2]} 28... Rxd8 {[%clk 0:00:42]} 29. Bf4
{[%clk 0:01:37]} 29... Nc6 {[%clk 0:00:24.3]} 30. Nd2 {[%clk 0:01:32.5]} 30...
b5 {[%clk 0:00:16.7]} 31. Nxc4 {[%clk 0:01:31.2]} 31... bxc4 {[%clk 0:00:17.6]}
32. a6 {[%clk 0:01:30.2]} 32... Ra8 {[%clk 0:00:16]} 33. Bf1 {[%clk 0:01:28.5]}
33... Nd4 {[%clk 0:00:14]} 34. Bxc4 {[%clk 0:01:22.9]} 34... Qb6 {[%clk
0:00:11.2]} 35. Kg2 {[%clk 0:01:21.1]} 35... Nd7 {[%clk 0:00:10]} 36. Ra2 {[%clk
0:01:17.2]} 36... g5 {[%clk 0:00:07.9]} 37. Rb2 {[%clk 0:01:16.5]} 37... Qf6
{[%clk 0:00:04.2]} 38. Bc7 {[%clk 0:01:12.5]} 38... Ne5 {[%clk 0:00:03.8]} 39.
Rb6 {[%clk 0:01:09.7]} 39... Qe7 {[%clk 0:00:02.8]} 40. Rb7 {[%clk 0:01:03.4]}
40... Qf6 {[%clk 0:00:02.1]} 41. Bxe5 {[%clk 0:01:02.4]} 41... Qxe5 {[%clk
0:00:03]} 42. Rxf7 {[%clk 0:01:01.5]} 42... Kh8 {[%clk 0:00:03.6]} 43. a7 {[%clk
0:00:59.4]} 1-0

[Event "Early-Titled-Tuesday-Blitz-May-07-2024"]
[Site "Chess.com"]
[Date "2024.05.07"]
[Round "1"]
[White "Oneofmyturns"]
[Black "RamonManon0g"]
[Result "1-0"]
[WhiteElo "2808"]
[BlackElo "2454"]
[TimeControl "180+1"]
[EndTime "8:06:56 PDT"]
[Termination "Oneofmyturns won by resignation"]

1. d4 {[%clk 0:03:00.9]} 1... Nf6 {[%clk 0:02:56.4]} 2. c4 {[%clk 0:03:01.3]}
2... g6 {[%clk 0:02:56.3]} 3. Nc3 {[%clk 0:03:01.6]} 3... d5 {[%clk 0:02:56.9]}
4. cxd5 {[%clk 0:03:02.5]} 4... Nxd5 {[%clk 0:02:57.1]} 5. e4 {[%clk 0:03:03.2]}
5... Nxc3 {[%clk 0:02:57.8]} 6. bxc3 {[%clk 0:03:04.1]} 6... c5 {[%clk
0:02:58.1]} 7. Be3 {[%clk 0:03:04.4]} 7... Bg7 {[%clk 0:02:58.6]} 8. Rc1 {[%clk
0:03:04.6]} 8... O-O {[%clk 0:02:58.4]} 9. Qd2 {[%clk 0:03:04]} 9... Nc6 {[%clk
0:02:58.6]} 10. d5 {[%clk 0:03:03.7]} 10... Ne5 {[%clk 0:02:55.6]} 11. h3 {[%clk
0:03:03.9]} 11... b6 {[%clk 0:02:50.1]} 12. f4 {[%clk 0:03:03.7]} 12... Nd7
{[%clk 0:02:46.8]} 13. c4 {[%clk 0:02:54.3]} 13... Nf6 {[%clk 0:02:42.5]} 14.
Bd3 {[%clk 0:02:48.4]} 14... Bb7 {[%clk 0:02:33.5]} 15. Nf3 {[%clk 0:02:38.7]}
15... e6 {[%clk 0:02:24.9]} 16. e5 {[%clk 0:02:22.4]} 16... Nd7 {[%clk
0:01:43.4]} 17. dxe6 {[%clk 0:02:19.9]} 17... fxe6 {[%clk 0:01:43.2]} 18. O-O
{[%clk 0:02:18.4]} 18... Qe7 {[%clk 0:01:35.6]} 19. Qc2 {[%clk 0:02:13.4]} 19...
Rad8 {[%clk 0:01:33.2]} 20. Be4 {[%clk 0:02:12.4]} 20... Nb8 {[%clk 0:01:33.3]}
21. Rcd1 {[%clk 0:02:04]} 21... Nc6 {[%clk 0:01:33]} 22. a3 {[%clk 0:02:03.9]}
22... Na5 {[%clk 0:01:33]} 23. Bxb7 {[%clk 0:01:57.6]} 23... Qxb7 {[%clk
0:01:30.8]} 24. Ng5 {[%clk 0:01:56.8]} 24... Qc6 {[%clk 0:01:22.6]} 25. h4
{[%clk 0:01:16.5]} 25... Bh6 {[%clk 0:01:00]} 26. Nxh7 {[%clk 0:00:45]} 26...
Kxh7 {[%clk 0:00:55.2]} 27. h5 {[%clk 0:00:45.4]} 27... Bg7 {[%clk 0:00:20.3]}
28. Qxg6+ {[%clk 0:00:44.9]} 28... Kg8 {[%clk 0:00:19]} 29. h6 {[%clk
0:00:43.6]} 29... Qb7 {[%clk 0:00:19.3]} 30. Qxe6+ {[%clk 0:00:40.9]} 30... Kh8
{[%clk 0:00:19.2]} 31. hxg7+ {[%clk 0:00:23.7]} 31... Qxg7 {[%clk 0:00:20.1]}
32. Rxd8 {[%clk 0:00:24.2]} 32... Rxd8 {[%clk 0:00:20.1]} 33. Rf3 {[%clk
0:00:23.4]} 33... Rd1+ {[%clk 0:00:08]} 34. Kf2 {[%clk 0:00:23.6]} 1-0

[Event "Early-Titled-Tuesday-Blitz-May-07-2024"]
[Site "Chess.com"]
[Date "2024.05.07"]
[Round "1"]
[White "ploxoi"]
[Black "cristianserban1"]
[Result "0-1"]
[WhiteElo "2330"]
[BlackElo "2629"]
[TimeControl "180+1"]
[EndTime "8:06:56 PDT"]
[Termination "cristianserban1 won by resignation"]

1. d4 {[%clk 0:03:00.9]} 1... Nf6 {[%clk 0:02:57.7]} 2. c4 {[%clk 0:03:01]} 2...
e6 {[%clk 0:02:56.7]} 3. g3 {[%clk 0:03:01.1]} 3... b6 {[%clk 0:02:47.9]} 4. Bg2
{[%clk 0:03:01]} 4... c6 {[%clk 0:02:48]} 5. Nf3 {[%clk 0:02:59.1]} 5... d5
{[%clk 0:02:47.5]} 6. O-O {[%clk 0:02:59.8]} 6... Be7 {[%clk 0:02:46.9]} 7. Qc2
{[%clk 0:02:59.3]} 7... O-O {[%clk 0:02:42.9]} 8. Nbd2 {[%clk 0:02:59.5]} 8...
Bb7 {[%clk 0:02:40.1]} 9. e4 {[%clk 0:02:59.1]} 9... dxe4 {[%clk 0:02:36.8]} 10.
Nxe4 {[%clk 0:03:00]} 10... Nbd7 {[%clk 0:02:34.4]} 11. Rd1 {[%clk 0:02:59]}
11... h6 {[%clk 0:02:28]} 12. Bf4 {[%clk 0:02:54.5]} 12... Nxe4 {[%clk
0:02:26.1]} 13. Qxe4 {[%clk 0:02:53.4]} 13... Nf6 {[%clk 0:02:26.5]} 14. Qe2
{[%clk 0:02:53.6]} 14... Qc8 {[%clk 0:02:21.1]} 15. Rac1 {[%clk 0:02:46.1]}
15... c5 {[%clk 0:02:21.1]} 16. d5 {[%clk 0:02:45.9]} 16... Re8 {[%clk
0:02:20.7]} 17. dxe6 {[%clk 0:02:44.8]} 17... Qxe6 {[%clk 0:02:15.6]} 18. Qxe6
{[%clk 0:02:44]} 18... fxe6 {[%clk 0:02:16.5]} 19. Ne5 {[%clk 0:02:43.3]} 19...
Bxg2 {[%clk 0:02:16.7]} 20. Kxg2 {[%clk 0:02:44.2]} 20... Rac8 {[%clk 0:02:08]}
21. b3 {[%clk 0:02:37.8]} 21... g5 {[%clk 0:02:03]} 22. Be3 {[%clk 0:02:36.1]}
22... Kg7 {[%clk 0:01:56.7]} 23. Rd3 {[%clk 0:02:34.4]} 23... Bd8 {[%clk
0:01:34.2]} 24. Bd2 {[%clk 0:02:14.2]} 24... Ne4 {[%clk 0:01:15.1]} 25. Rd7+
{[%clk 0:01:18.8]} 25... Re7 {[%clk 0:01:13.5]} 26. Be1 {[%clk 0:01:15.7]} 26...
Rxd7 {[%clk 0:00:59.2]} 27. Nxd7 {[%clk 0:01:16.6]} 27... Bc7 {[%clk 0:00:45.7]}
28. f3 {[%clk 0:01:15.3]} 28... Nd6 {[%clk 0:00:45.8]} 29. Bc3+ {[%clk
0:01:14.1]} 29... Kf7 {[%clk 0:00:39.5]} 30. Rd1 {[%clk 0:01:05.2]} 30... Nf5
{[%clk 0:00:37.1]} 31. Kf2 {[%clk 0:01:04.7]} 31... Nd4 {[%clk 0:00:22.8]} 32.
Bxd4 {[%clk 0:01:02.9]} 32... cxd4 {[%clk 0:00:23.7]} 33. Rxd4 {[%clk
0:00:38.5]} 33... Ke7 {[%clk 0:00:23.7]} 34. c5 {[%clk 0:00:27]} 34... bxc5
{[%clk 0:00:23.3]} 35. Nxc5 {[%clk 0:00:23.1]} 35... Bb6 {[%clk 0:00:23.3]} 36.
b4 {[%clk 0:00:23.7]} 36... Rxc5 {[%clk 0:00:23.1]} 37. bxc5 {[%clk 0:00:24.6]}
37... Bxc5 {[%clk 0:00:24]} 38. Ke3 {[%clk 0:00:24.5]} 38... e5 {[%clk
0:00:24.2]} 0-1